fUST/lending_fUST_20260327
["ID","MTS","AMOUNT","RATE_DAILY","PERIOD"]
[418933834,1774582233480,-4221.38881268,6.47e-05,2]
[418933835,1774582233503,-784.76262155,6.47e-05,2]
[418933836,1774582233515,-505.29661839,6.47e-05,2]
[418933837,1774582233524,-209.27045379,6.758e-05,2]
[418933838,1774582233533,-300.0,6.857e-05,2]
[418933839,1774582233542,-155.38376458,6.857e-05,2]
[418933841,1774582233554,-144.61623542,6.857e-05,2]
[418933844,1774582233563,-300.0,6.857e-05,2]
[418933847,1774582233572,-300.0,6.857e-05,2]
[418933848,1774582233582,-761.50706937,6.857e-05,2]
[418933864,1774582238734,-231.901253,6.261e-05,2]
[418933865,1774582238751,-231.901253,6.524e-05,2]
[418933866,1774582238768,-231.901253,6.788e-05,2]
[418933867,1774582238782,-438.49293063,6.857e-05,2]
[418933868,1774582238796,-300.0,6.858e-05,2]
[418933869,1774582238813,-7517.7443367,6.859e-05,2]
[418933870,1774582238831,-1116.50058433,7.049e-05,2]
[418933871,1774582238849,-1742.78763086,7.049e-05,2]
[418933872,1774582238861,-231.901253,7.052e-05,2]
[418933873,1774582238877,-21714.73378272,7.3e-05,2]
[418933874,1774582238894,-4783.18568281,7.3e-05,2]
[418933875,1774582238913,-29613.96410431,7.3e-05,2]
[418933876,1774582238929,-18613.46250149,7.3e-05,2]
[418933877,1774582238945,-409.18490883,7.3e-05,2]
[418933889,1774582241310,-246958.50398311,7.3e-05,2]
[418933890,1774582241362,-1951.88971912,7.3e-05,2]
[418933891,1774582241416,-495.840245,7.3e-05,2]
[418933911,1774582247063,-1209.79618404,7.3e-05,2]
[418933912,1774582247074,-6462.97697068,7.3e-05,2]
[418933913,1774582262288,-1379.10326508,7.3e-05,2]
[418933931,1774583431794,-511.0,6.413e-05,2]
[418933932,1774583431804,-209.27045379,6.958e-05,2]
[418933933,1774583431813,-905.077,7.056e-05,2]
[418933934,1774583431822,-186.152,7.056e-05,2]
[418933935,1774583431831,-502.50027621,7.073e-05,2]
[418933936,1774583431840,-149.57623477,7.098e-05,2]
[418933937,1774583431859,-150.42376523,7.098e-05,2]
[418933938,1774583431868,-300.0,7.098e-05,2]
[418933939,1774583431878,-300.0,7.098e-05,2]
[418933940,1774583431887,-23.19830123,7.098e-05,2]
[418933941,1774583431898,-276.80169877,7.098e-05,2]
[418933942,1774583431907,-830.38720776,7.098e-05,2]
[418933943,1774583431918,-369.61279224,7.098e-05,2]
[418933944,1774583431927,-500.0,7.099e-05,2]
[418933945,1774583431936,-504.43822491,7.099e-05,2]
[418933946,1774583431946,-224.530887,7.099e-05,2]
[418933947,1774583431955,-400.91776334,7.099e-05,2]
[418933948,1774583431964,-155.47886221,7.099e-05,2]
[418933949,1774583431974,-502.19113892,7.099e-05,2]
[418933950,1774583431983,-500.0,7.099e-05,2]
[418933951,1774583431991,-188.2195591,7.1e-05,2]
[418933952,1774583432000,-251.5060849,7.1e-05,2]
[418933953,1774583432009,-272.34121527,7.1e-05,2]
[418933954,1774583432018,-265.17203495,7.1e-05,2]
[418933955,1774583432027,-621.34459873,7.1e-05,2]
[418933958,1774583437928,-1525.30332079,7.1e-05,2]
[418933959,1774583438033,-1104.170928,7.1e-05,2]
[418933981,1774583440760,-68877.22027889,7.1e-05,2]
[418933986,1774583443223,-17211.30865834,7.1e-05,2]
[418933987,1774583443278,-1107.9990059,7.1e-05,2]
[418933998,1774583446048,-17681.61880355,7.1e-05,2]
[418933999,1774583446141,-3639.29898453,7.1e-05,2]
[418934056,1774584632028,-500.0,5.397e-05,2]
[418934058,1774584632038,-500.0,5.886e-05,2]
[418934060,1774584632047,-250.0,5.926e-05,2]
[418934063,1774584632057,-454.2268731,6.247e-05,2]
[418934064,1774584632066,-209.27045379,6.313e-05,2]
[418934066,1774584632075,-52.62242254,6.799e-05,2]
[418934071,1774584632107,-247.37757746,6.799e-05,2]
[418934073,1774584632117,-300.0,6.799e-05,2]
[418934075,1774584632126,-300.0,6.799e-05,2]
[418934077,1774584632135,-300.0,6.799e-05,2]
[418934079,1774584632145,-15.96993155,6.799e-05,2]
[418934082,1774584632156,-269.08724583,6.799e-05,2]
[418934250,1774584640997,-209.27045379,5.297e-05,2]
[418934252,1774584641015,-914.94282262,6.799e-05,2]
[418934253,1774584641034,-33140.60723245,6.8e-05,2]
[418934271,1774584643549,-6899.37807858,6.8e-05,2]
[418934306,1774584646684,-5000.0,6.8e-05,2]
[418934307,1774584646743,-10714.83333333,6.8e-05,2]
[418934310,1774585123528,-1955.3943578,5.811e-05,2]
[418934311,1774585123552,-1584.10971377,5.857e-05,2]
[418934312,1774585123575,-3449.77043663,5.957e-05,2]
[418934313,1774585123600,-3010.7254918,6.057e-05,2]
[418934314,1774585130023,-807.72743611,6.057e-05,2]
[418934315,1774585130047,-3838.72972167,6.157e-05,2]
[418934316,1774585130070,-300.0,6.177e-05,2]
[418934317,1774585130093,-300.0,6.177e-05,2]
[418934318,1774585130117,-300.0,6.177e-05,2]
[418934319,1774585130141,-300.0,6.177e-05,2]
[418934320,1774585130164,-300.0,6.177e-05,2]
[418934321,1774585130188,-300.0,6.177e-05,2]
[418934322,1774585130211,-300.0,6.177e-05,2]
[418934323,1774585130235,-300.0,6.177e-05,2]
[418934324,1774585130311,-300.0,6.177e-05,2]
[418934325,1774585130334,-300.0,6.177e-05,2]
[418934326,1774585130358,-300.0,6.177e-05,2]
[418934327,1774585130380,-300.0,6.177e-05,2]
[418934328,1774585130403,-300.0,6.177e-05,2]
[418934329,1774585130428,-300.0,6.177e-05,2]
[418934330,1774585130450,-300.0,6.177e-05,2]
[418934331,1774585265109,-300.0,5.759e-05,2]
[418934332,1774585265130,-300.0,5.76e-05,2]
[418934333,1774585265150,-300.0,5.76e-05,2]
[418934334,1774585265171,-300.0,5.76e-05,2]
[418934335,1774585265193,-1200.0,5.76e-05,2]
[418934336,1774585265212,-503.0,5.76e-05,2]
[418934337,1774585265232,-7097.0,5.761e-05,2]
[418934338,1774585272502,-4800.0,5.761e-05,2]
[418934339,1774585290810,-3400.0,5.761e-05,2]
[418934340,1774585309796,-4900.0,5.761e-05,2]
[418934341,1774585346279,-467.3702227,5.761e-05,2]
[418934342,1774585346300,-252.6297773,5.874e-05,2]
[418934360,1774585832391,-323.1955821,5.773e-05,2]
[418934361,1774585832400,-503.0,5.773e-05,2]
[418934362,1774585832409,-300.0,5.873e-05,2]
[418934363,1774585832418,-300.0,5.873e-05,2]
[418934364,1774585832427,-300.0,5.873e-05,2]
[418934365,1774585832437,-300.0,5.873e-05,2]
[418934366,1774585832446,-1200.0,5.874e-05,2]
[418934367,1774585832456,-300.0,5.874e-05,2]
[418934368,1774585832465,-300.0,5.875e-05,2]
[418934369,1774585832474,-300.0,5.875e-05,2]
[418934370,1774585832484,-300.0,5.875e-05,2]
[418934371,1774585832493,-300.0,5.875e-05,2]
[418934372,1774585832503,-300.0,5.875e-05,2]
[418934373,1774585832512,-300.0,5.875e-05,2]
[418934374,1774585832521,-300.0,5.875e-05,2]
[418934375,1774585832530,-300.0,5.875e-05,2]
[418934376,1774585832539,-300.0,5.875e-05,2]
[418934377,1774585832549,-300.0,5.875e-05,2]
[418934378,1774585832606,-300.0,5.875e-05,2]
[418934379,1774585832619,-300.0,5.875e-05,2]
[418934380,1774585832629,-300.0,5.875e-05,2]
[418934381,1774585832638,-300.0,5.875e-05,2]
[418934382,1774585832647,-159.874251,6.377e-05,2]
[418934383,1774585832656,-420.0,6.46e-05,2]
[418934384,1774585832666,-338.0,6.46e-05,2]
[418934385,1774585832675,-1605.9301669,6.461e-05,2]
[418934427,1774585838612,-74.0698331,6.461e-05,2]
[418934429,1774585838622,-500.0,6.573e-05,2]
[418934431,1774585838631,-500.0,6.573e-05,2]
[418934433,1774585838641,-500.0,6.573e-05,2]
[418934435,1774585838650,-212.46018557,6.573e-05,2]
[418934437,1774585838659,-500.44049101,6.573e-05,2]
[418934439,1774585838668,-506.37519551,6.573e-05,2]
[418934441,1774585838677,-500.0,6.573e-05,2]
[418934443,1774585838687,-502.67780392,6.573e-05,2]
[418934445,1774585838696,-500.94067614,6.573e-05,2]
[418934447,1774585838704,-500.0,6.573e-05,2]
[418934449,1774585838714,-500.6733627,6.573e-05,2]
[418934451,1774585838722,-500.0,6.573e-05,2]
[418934453,1774585838731,-255.63131308,6.599e-05,2]
[418934455,1774585838740,-153.80283224,6.599e-05,2]
[418934457,1774585838749,-610.49015387,6.6e-05,2]
[418934460,1774585838759,-668.27360037,6.6e-05,2]
[418934462,1774585838768,-325.82457847,6.6e-05,2]
[418934464,1774585838777,-23021.77672851,6.6e-05,2]
[418934466,1774585838789,-1437.21047514,6.6e-05,2]
[418934468,1774585838800,-29374.6580049,6.6e-05,2]
[418934636,1774585841091,-1984.21972665,6.6e-05,2]
[418934652,1774585841396,-1186.96651919,6.6e-05,2]
[418934653,1774585841408,-4966.13371803,6.6e-05,2]
[418934677,1774585846926,-34617.03036072,6.6e-05,2]
[418934678,1774585862696,-300.0,6.599e-05,2]
[418934679,1774585862714,-300.0,6.6e-05,2]
[418934680,1774585862725,-428.64920425,6.6e-05,2]
[418934688,1774586114881,166.079119,6.216e-05,120]
[418934732,1774587032600,-545.83712939,2.3e-05,2]
[418934734,1774587032612,-865.89287061,2.3e-05,2]
[418934736,1774587032621,-955.79,2.3e-05,2]
[418934738,1774587032630,-567.41,2.3e-05,2]
[418934739,1774587032639,-821.29,2.3e-05,2]
[418934740,1774587032648,-1057.89,2.3e-05,2]
[418934741,1774587032658,-323.1955821,5.228e-05,2]
[418934742,1774587032668,-300.0,5.658e-05,2]
[418934743,1774587032678,-300.0,5.658e-05,2]
[418934744,1774587032687,-300.0,5.658e-05,2]
[418934745,1774587032696,-300.0,5.658e-05,2]
[418934746,1774587032706,-1200.0,5.658e-05,2]
[418934747,1774587032715,-5159.33095944,5.659e-05,2]
[418934757,1774587038728,-1201.5,2.3e-05,2]
[418934758,1774587038737,-630.58093705,5.659e-05,2]
[418934759,1774587038746,-880.05639095,6.145e-05,2]
[418934760,1774587038757,-473.04103255,6.145e-05,2]
[418934761,1774587038766,-166.079119,6.216e-05,2]
[418934762,1774587038775,-420.0,6.224e-05,2]
[418934763,1774587038784,-338.0,6.224e-05,2]
[418934764,1774587038794,-1204.42423611,6.224e-05,2]
[418934778,1774587043995,-475.57576389,6.224e-05,2]
[418934779,1774587044005,-152.0,6.344e-05,2]
[418934780,1774587044014,-250.0,6.52e-05,2]
[418934781,1774587044024,-300.0,6.571e-05,2]
[418934782,1774587044033,-504.60102506,6.599e-05,2]
[418934783,1774587044042,-159.874251,6.713e-05,2]
[418934784,1774587044051,-339.0,6.8e-05,2]
[418934785,1774587044061,-600.0,6.833e-05,2]
[418934786,1774587044070,-587.0,6.846e-05,2]
[418934787,1774587044079,-1060.77472167,6.846e-05,2]
[418934819,1774587047055,-484.14,6.846e-05,2]
[418934820,1774587047112,-806.08527833,6.846e-05,2]
[418934821,1774587047121,-384.42763885,6.857e-05,2]
[418934822,1774587047131,-439.34587297,6.857e-05,2]
[418934823,1774587047140,-596.74508261,6.857e-05,2]
[418934834,1774587624319,-228.66,2.299e-05,2]
[418934917,1774588231794,-300.0,2.299e-05,2]
[418934918,1774588231804,-622.0,2.299e-05,2]
[418934919,1774588231813,-652.51,2.3e-05,2]
[418934920,1774588231821,-253.32,2.3e-05,2]
[418934921,1774588231831,-2974.45,2.3e-05,2]
[418934922,1774588231840,-172.84735934,2.3e-05,2]
[418934923,1774588231855,-442.49264066,2.3e-05,2]
[418934924,1774588231864,-189.38,2.3e-05,2]
[418934943,1774588237930,-2144.06,2.3e-05,2]
[418934944,1774588237940,-2147.41,2.3e-05,2]
[418934945,1774588237949,-529.04970832,2.3e-05,2]
[418934946,1774588238048,-1335.10253974,2.3e-05,2]
[418934947,1774588240591,-51.72775194,2.3e-05,2]
[418934948,1774588240601,-1658.74,2.3e-05,2]
[418934949,1774588240610,-578.25943837,2.3e-05,2]
[418934961,1774588245985,-723.57056163,2.3e-05,2]
[418934962,1774588245995,-1815.68,2.3e-05,2]
[418934963,1774588246004,-369.0,2.529e-05,2]
[418934964,1774588246013,-250.0,3.038e-05,2]
[418934965,1774588246023,-500.0,5.531e-05,2]
[418934966,1774588246035,-300.0,5.665e-05,2]
[418934967,1774588246044,-644.08204615,5.722e-05,2]
[418934970,1774588246416,-1750.33032145,5.722e-05,2]
[418934971,1774588246425,-500.0,5.827e-05,2]
[418934972,1774588246435,-159.38,6.099e-05,2]
[418934973,1774588246444,-809.0077862,6.324e-05,2]
[418934974,1774588246453,-161.3143201,6.324e-05,2]
[418934975,1774588246463,-290.0,6.344e-05,2]
[418934976,1774588246472,-159.874251,6.561e-05,2]
[418934977,1774588246481,-247.33385604,6.857e-05,2]
[418934978,1774588246490,-282.66726404,6.857e-05,2]
[418934979,1774588246500,-441.22593246,6.857e-05,2]
[418934980,1774588246509,-500.0,6.857e-05,2]
[418934981,1774588246519,-1652.4359149,6.882e-05,2]
[418934982,1774588246528,-642.0,6.9e-05,2]
[418934983,1774588246538,-830.754,6.9e-05,2]
[418934984,1774588246548,-184.0,6.9e-05,2]
[418934985,1774588246557,-439.0,6.9e-05,2]
[418934986,1774588246566,-584.095,6.9e-05,2]
[418934987,1774588246575,-407.35760417,6.988e-05,2]
[418934988,1774588246584,-500.0,6.992e-05,2]
[418934989,1774588246593,-500.0,7e-05,2]
[418934990,1774588246602,-159.874251,7.022e-05,2]
[418934991,1774588246612,-152.0,7.023e-05,2]
[418934992,1774588246621,-1165.78360314,7.031e-05,7]
[418934993,1774588246631,-305.40691261,7.038e-05,2]
[418934994,1774588246640,-537.6845,7.044e-05,2]
[418934995,1774588246649,-2150.738,7.044e-05,2]
[418934996,1774588246659,-391.42271629,7.067e-05,7]
[418934997,1774588246727,-251.83436355,7.067e-05,7]
[418934998,1774588246737,-162.20003002,7.098e-05,2]
[418934999,1774588246746,-291.96005404,7.098e-05,2]
[418935000,1774588246756,-229.7347229,7.098e-05,2]
[418935001,1774588246765,-301.8791844,7.098e-05,2]
[418935002,1774588246774,-519.04009607,7.098e-05,2]
[418935003,1774588246783,-413.52250123,7.098e-05,2]
[418935004,1774588246792,-197.84509282,7.098e-05,2]
[418935005,1774588246801,-735.15111329,7.098e-05,2]
[418935006,1774588246810,-557.5788265,7.099e-05,2]
[418935007,1774588246819,-1148.67361452,7.108e-05,2]
[418935008,1774588246828,-810.18914996,7.119e-05,2]
[418935009,1774588246837,-809.0077862,7.129e-05,2]
[418935010,1774588246849,-494.79148063,7.147e-05,7]
[418935011,1774588246858,-186.15207825,7.147e-05,2]
[418935012,1774588246867,-865.464,7.147e-05,2]
[418935013,1774588246876,-578.20924308,7.154e-05,2]
[418935014,1774588246885,-268.68209855,7.173e-05,7]
[418935015,1774588246895,-599.60298507,7.209e-05,2]
[418935016,1774588246904,-621.78829552,7.264e-05,2]
[418935017,1774588246913,-580.55349671,7.319e-05,2]
[418935018,1774588246923,-491.76768696,7.473e-05,2]
[418935019,1774588246932,-500.0,7.473e-05,2]
[418935020,1774588246941,-502.5613645,7.473e-05,2]
[418935021,1774588246950,-593.82794115,7.473e-05,2]
[418935022,1774588246960,-504.9102868,7.473e-05,2]
[418935023,1774588246969,-500.75266893,7.473e-05,2]
[418935024,1774588246979,-159.874251,7.482e-05,2]
[418935025,1774588246988,-8718.16078824,7.5e-05,2]
[418935050,1774589431901,-500.0,6.008e-05,2]
[418935051,1774589431911,-453.55702181,6.008e-05,2]
[418935052,1774589431923,-52.44297819,6.008e-05,2]
[418935053,1774589431933,-475.90930653,6.096e-05,2]
[418935054,1774589431945,-24.09069347,6.096e-05,2]
[418935055,1774589431955,-500.0,6.732e-05,2]
[418935056,1774589431964,-500.0,7.003e-05,2]
[418935057,1774589431974,-500.0,7.075e-05,2]
[418935058,1774589431983,-1110.66027973,7.079e-05,2]
[418935059,1774589431992,-165.21297938,7.095e-05,2]
[418935060,1774589432002,-733.2436875,7.095e-05,2]
[418935061,1774589432011,-1303.54433334,7.098e-05,2]
[418935062,1774589432020,-692.75519307,7.128e-05,2]
[418935063,1774589432030,-1074.72839418,7.157e-05,7]
[418935064,1774589432039,-573.08687113,7.173e-05,2]
[418935065,1774589432048,-300.0,7.174e-05,2]
[418935066,1774589432057,-2150.738,7.175e-05,2]
[418935067,1774589432066,-662.43956815,7.179e-05,2]
[418935068,1774589432089,-645.56462555,7.179e-05,2]
[418935080,1774589437985,-1163.18516955,7.179e-05,2]
[418935081,1774589437994,-1618.0155727,7.197e-05,2]
[418935082,1774589438003,-35332.11763184,7.2e-05,2]
[418935113,1774589446244,-296.10075814,7.2e-05,2]
[418935114,1774589461843,-982.68997749,7.2e-05,2]
[418935151,1774590632073,-500.0,5.682e-05,2]
[418935158,1774590632132,-2.0,5.682e-05,2]
[418935160,1774590632141,-181.993768,6.602e-05,2]
[418935162,1774590632150,-270.0,6.799e-05,2]
[418935164,1774590632159,-437.006232,6.8e-05,2]
[418935265,1774590641506,-68604.62270177,6.8e-05,2]
[418935266,1774590641562,-3583.73877053,6.8e-05,2]
[418935267,1774590641574,-16401.06805442,6.8e-05,2]
[418935271,1774590641624,-307.9740943,6.8e-05,2]
[418935451,1774590643703,-478.55877297,6.8e-05,2]
[418935514,1774590646596,-1929.10950984,6.8e-05,2]
[418935521,1774590646659,-13498.85854768,6.8e-05,2]
[418935524,1774590646670,-69774.33475064,6.8e-05,2]
[418935691,1774591242775,-515.07,5.814e-05,2]
[418935726,1774591838563,-8301.7076597,5.814e-05,2]
[418935728,1774591838573,-500.0,5.814e-05,2]
[418935730,1774591838582,-309.29194371,5.814e-05,2]
[418935779,1774591844080,-190.70805629,5.814e-05,2]
[418935780,1774591844090,-246.6961342,5.814e-05,2]
[418935781,1774591844100,-504.0,5.814e-05,2]
[418935782,1774591844109,-1730.44949695,5.861e-05,2]
[418935783,1774591844120,-187.64424614,5.861e-05,2]
[418935784,1774591844132,-200.93944342,5.961e-05,2]
[418935785,1774591844143,-414.47808282,5.961e-05,2]
[418935797,1774591846572,-3484.82695688,5.961e-05,2]
[418935798,1774591846581,-4550.99590685,6.061e-05,2]
[418935799,1774591846590,-4671.92749201,6.161e-05,2]
[418935800,1774591846599,-5001.74733067,6.261e-05,2]
[418935801,1774591846608,-747.969,6.566e-05,2]
[418935802,1774591846617,-500.0,6.599e-05,2]
[418935803,1774591846627,-500.0,6.599e-05,2]
[418935804,1774591846636,-500.0,6.599e-05,2]
[418935805,1774591846644,-87.29450486,6.599e-05,2]
[418935806,1774591846655,-412.70549514,6.599e-05,2]
[418935807,1774591846666,-399.08984982,6.599e-05,2]
[418935808,1774591846675,-500.0,6.599e-05,2]
[418935809,1774591846684,-292.62303734,6.599e-05,2]
[418935810,1774591846693,-15110.48757475,6.6e-05,2]
[418935811,1774591846711,-3532.78696489,6.6e-05,2]
[418936143,1774593043374,-162.29407199,5.635e-05,2]
[418936144,1774593043402,-500.0,5.672e-05,2]
[418936145,1774593043422,-162.29407199,5.672e-05,2]
[418936146,1774593043437,-339.70592801,5.672e-05,2]
[418936148,1774593043991,-500.0,6.144e-05,2]
[418936149,1774593044000,-399.75354257,6.228e-05,2]
[418936150,1774593044010,-500.0,6.791e-05,2]
[418936151,1774593044020,-782.2,6.8e-05,2]
[418936152,1774593044029,-1738.14978526,6.8e-05,2]
[418936182,1774593047044,-2710.91764172,6.8e-05,2]
[418936209,1774593072468,-298.16081443,6.7e-05,2]
[418936226,1774594232627,-188.0,5.669e-05,2]
[418936227,1774594232636,-502.0,5.669e-05,2]
[418936228,1774594232646,-188.0,6.348e-05,2]
[418936229,1774594232656,-181.993768,6.357e-05,2]
[418936230,1774594232665,-300.0,6.472e-05,2]
[418936231,1774594232675,-159.0,6.472e-05,2]
[418936232,1774594232685,-300.0,6.472e-05,2]
[418936233,1774594232694,-505.08773993,6.473e-05,2]
[418936234,1774594232704,-356.41146434,6.473e-05,2]
[418936235,1774594232714,-500.0,6.473e-05,2]
[418936236,1774594232723,-529.14044959,6.473e-05,2]
[418936237,1774594232732,-529.8657725,6.473e-05,2]
[418936238,1774594232742,-300.0,6.498e-05,2]
[418936239,1774594232751,-500.0,6.499e-05,2]
[418936240,1774594232761,-500.0,6.499e-05,2]
[418936241,1774594232770,-313.87574291,6.499e-05,2]
[418936242,1774594232779,-501.57491896,6.499e-05,2]
[418936243,1774594232790,-217.45046561,6.5e-05,2]
[418936244,1774594232800,-328.57708735,6.5e-05,2]
[418936245,1774594232809,-352.66498369,6.5e-05,2]
[418936246,1774594232819,-365.76430977,6.5e-05,2]
[418936247,1774594232828,-12828.58989263,6.5e-05,2]
[418936248,1774594232839,-252.513281,6.5e-05,2]
[418936279,1774594238665,-2969.89313472,6.5e-05,2]
[418936295,1774594238796,-7821.2022502,6.5e-05,2]
[418936297,1774594238808,-1134.089456,6.5e-05,2]
[418936395,1774594241509,-1792.69048742,6.5e-05,2]
[418936397,1774594241520,-484.0,6.5e-05,2]
[418936498,1774594244157,-443.0,6.5e-05,2]
[418936499,1774594244168,-2160.0,6.5e-05,2]
[418936500,1774594244546,-610345.89839504,6.5e-05,2]
[418936557,1774594246945,-3243.02942361,6.5e-05,2]
[418936694,1774594842669,-500.0,5.654e-05,2]
[418936695,1774594842695,-457.72881736,5.654e-05,2]
[418936696,1774594842721,-502.0,5.654e-05,2]
[418936697,1774594842747,-500.0,5.815e-05,2]
[418936698,1774594859390,-500.61721504,6.273e-05,2]
[418936699,1774594859417,-249.07211082,6.273e-05,2]
[418936700,1774594888504,-300.0,6.298e-05,2]
[418936701,1774594888532,-300.0,6.299e-05,2]
[418936702,1774594888560,-300.0,6.299e-05,2]
[418936703,1774594888589,-64.65237869,6.299e-05,2]
[418936704,1774594888674,-835.34762131,6.299e-05,2]
[418936705,1774594917603,-300.0,6.299e-05,2]
[418936706,1774594917630,-173.91861798,6.299e-05,2]
[418936707,1774594917679,-16.81514273,6.299e-05,2]
[418936709,1774594946795,-473.91861798,5.471e-05,2]
[418936710,1774595162346,-26.08138202,5.471e-05,2]
[418936711,1774595162368,-500.0,5.62e-05,2]
[418936712,1774595162388,-188.0,5.669e-05,2]
[418936713,1774595208626,-1200.0,6.172e-05,2]
[418936714,1774595208646,-300.0,6.172e-05,2]
[418936715,1774595208669,-300.0,6.172e-05,2]
[418936716,1774595208689,-639.0007152,6.173e-05,2]
[418936717,1774595208760,-500.0,6.173e-05,2]
[418936718,1774595208780,-60.9992848,6.173e-05,2]
[418936719,1774595224387,-439.0007152,6.173e-05,2]
[418936720,1774595224409,-60.9992848,6.173e-05,2]
[418936721,1774595267177,-285.0,6.173e-05,2]
[418936725,1774595364530,-3686.02942361,6.138e-05,2]
[418936726,1774595364551,-520.51524112,6.173e-05,2]
[418936727,1774595364574,-300.0,6.198e-05,2]
[418936728,1774595364597,-500.0,6.199e-05,2]
[418936729,1774595364620,-500.0,6.199e-05,2]
[418936730,1774595364645,-386.81913477,6.199e-05,2]
[418936731,1774595364670,-500.0,6.199e-05,2]
[418936732,1774595364694,-500.0,6.199e-05,2]
[418936733,1774595364717,-500.0,6.199e-05,2]
[418936734,1774595364741,-256.6362005,6.199e-05,2]
[418936772,1774595442893,-405.24263566,6.099e-05,2]
[418936773,1774595442902,-500.0,6.099e-05,2]
[418936775,1774595442912,-112703.72398662,6.1e-05,2]
[418936777,1774595442923,-163205.85249604,6.1e-05,2]
[418936778,1774595442934,-1361.65902798,6.1e-05,2]
[418936793,1774595446051,-1120.77721873,6.1e-05,2]
[418936794,1774595446457,-26117.96819526,6.1e-05,2]
[418936861,1774596643044,-151.0,5.301e-05,2]
[418936863,1774596643054,-189.7950361,5.301e-05,2]
[418936865,1774596643065,-2131.54990157,5.31e-05,2]
[418936867,1774596643075,-4507.76508959,5.41e-05,2]
[418936869,1774596643084,-4.19611487,5.836e-05,2]
[418936871,1774596643096,-298.55576213,5.836e-05,2]
[418936873,1774596643107,-300.0,5.84e-05,2]
[418936875,1774596643116,-98.76161945,5.841e-05,2]
[418936878,1774596643128,-67899.05175644,5.841e-05,2]
[418936931,1774596643613,-3896.11847603,5.841e-05,2]
[418936932,1774596643624,-19306.9,5.841e-05,2]
[418936985,1774596646495,-3952.86633803,5.841e-05,2]
[418936986,1774596646506,-50418.8782737,5.841e-05,2]
[418936987,1774596646761,-921.64530477,5.841e-05,2]
[418936998,1774596648104,-1494.899293,5.841e-05,2]
[418937033,1774597832284,-151.681624,4.479e-05,2]
[418937034,1774597832294,-355.5138202,4.479e-05,2]
[418937035,1774597832304,-567.1972151,4.778e-05,2]
[418937036,1774597832313,-300.0,5.3e-05,2]
[418937037,1774597832323,-202.0,5.3e-05,2]
[418937038,1774597832332,-197.1754585,5.301e-05,2]
[418937039,1774597832342,-326.114894,5.301e-05,2]
[418937040,1774597832351,-324.7865589,5.301e-05,2]
[418937041,1774597832360,-454.9897696,5.301e-05,2]
[418937042,1774597832369,-196.2006776,5.301e-05,2]
[418937043,1774597832379,-573.704951,5.301e-05,2]
[418937044,1774597832389,-454.9897696,5.301e-05,2]
[418937045,1774597832398,-324.7865589,5.301e-05,2]
[418937047,1774597832408,-196.1862699,5.301e-05,2]
[418937049,1774597832417,-196.1748999,5.301e-05,2]
[418937051,1774597832427,-454.9897696,5.301e-05,2]
[418937059,1774597832479,-218.6986279,5.301e-05,2]
[418937062,1774597832498,-442.60590132,5.523e-05,2]
[418937064,1774597832507,-163.69618524,5.523e-05,2]
[418937066,1774597832517,-500.54244637,5.523e-05,2]
[418937067,1774597832526,-500.0,5.523e-05,2]
[418937068,1774597832536,-154.95566977,5.523e-05,2]
[418937069,1774597832545,-500.0,5.523e-05,2]
[418937070,1774597832555,-504.96443852,5.523e-05,2]
[418937071,1774597832564,-336.62389964,5.54e-05,2]
[418937072,1774597832574,-182.2881899,5.54e-05,2]
[418937073,1774597832584,-154.09101497,5.54e-05,2]
[418937074,1774597832593,-5625.03940239,5.541e-05,2]
[418937075,1774597832604,-2751.07633631,5.541e-05,2]
[418937129,1774597838523,-250.0,5.247e-05,2]
[418937131,1774597838532,-958.7291331,5.541e-05,2]
[418937270,1774597841263,-6000.00000163,5.541e-05,2]
[418937394,1774597843904,-3492.98449047,5.541e-05,2]
[418937396,1774597843916,-6860.9,5.541e-05,2]
[418937398,1774597843928,-3343.35704555,5.541e-05,2]
[418937605,1774597846858,-32398.21095497,5.541e-05,2]
[418937610,1774598270274,-252.29323,5.179e-05,2]
[418937611,1774598270295,-151.0,5.301e-05,2]
[418937612,1774598270315,-454.9897697,5.301e-05,2]
[418937613,1774598270337,-141.7170003,5.301e-05,2]
[418937614,1774598271445,-313.2727693,5.301e-05,2]
[418937615,1774598271466,-454.9897696,5.301e-05,2]
[418937616,1774598271487,-231.7374611,5.397e-05,2]
[418937617,1774598272256,-20.5557689,5.397e-05,2]
[418937618,1774598272278,-500.0,5.444e-05,2]
[418937619,1774598272299,-479.4442311,5.585e-05,2]
[418937620,1774598272706,-252.08948133,5.585e-05,2]
[418937621,1774598272726,-216.8772451,5.585e-05,2]
[418937622,1774598272747,-252.29323,5.615e-05,2]
[418937623,1774598272767,-278.74004357,5.623e-05,2]
[418937624,1774598273144,-223.13039083,5.623e-05,2]
[418937625,1774598273165,-230.84082452,5.623e-05,2]